bitfinex/quotes_ETHUSD_20241216
["timestamp","ask_amount","ask_price","bid_price","bid_amount"]
[1734392174081,0.5,3980.0,3978.8,0.7695]
[1734392174289,0.5,3980.0,3979.5,3.0]
[1734392174468,0.5,3980.0,3979.5,3.3]
[1734392174667,0.5,3980.0,3979.6,3.0]
[1734392174972,0.5,3980.0,3979.5,0.3]
[1734392175134,0.5,3980.0,3979.7,3.0]
[1734392175337,0.5,3980.0,3978.9,0.67792426]
[1734392175588,0.5,3980.0,3978.9,0.55]
[1734392175750,0.5,3980.0,3979.0,0.02512327]
[1734392175938,0.5,3980.0,3977.6,1.044623]
[1734392175939,0.5,3980.0,3978.2,0.7555]
[1734392176334,0.5,3980.0,3977.6,0.7555]
[1734392176335,0.25291539,3979.9,3977.6,0.7555]
[1734392176650,0.22779502,3979.8,3977.7,0.02513125]
[1734392176971,0.5,3980.0,3977.7,0.02513125]
[1734392176972,0.22779502,3979.7,3977.7,0.02513125]
[1734392177177,0.02512037,3979.9,3977.7,0.02513125]
[1734392177335,0.02512037,3979.9,3977.6,0.7555]
[1734392177336,0.22780294,3979.8,3977.6,0.7555]
[1734392177684,0.5,3980.0,3977.6,0.7555]
[1734392177685,0.2529405,3979.7,3977.6,0.7555]
[1734392177983,0.02512037,3979.7,3978.6,3.0]
[1734392178284,0.02512037,3979.7,3977.7,0.57513059]
[1734392178434,0.02512037,3979.9,3977.8,0.13306306]
[1734392178637,0.22785667,3979.8,3978.6,3.0]
[1734392178839,0.02512037,3979.7,3978.6,3.0]
[1734392179243,0.02512037,3979.9,3978.6,3.0]
[1734392179440,0.22789631,3979.8,3977.8,0.13306306]
[1734392179646,0.5,3980.0,3977.9,0.15901222]
[1734392179647,0.02512037,3979.7,3977.9,0.15901222]
[1734392180051,0.02512037,3979.7,3978.6,3.0]
[1734392180546,0.02512037,3979.9,3977.9,0.15901222]
[1734392180749,0.22796078,3979.8,3978.6,3.0]
[1734392180948,0.02512037,3979.7,3977.9,0.15901222]
[1734392181170,0.22794951,3979.6,3978.6,3.0]
[1734392181340,0.02512037,3979.5,3978.6,3.0]
[1734392182063,0.02512037,3979.5,3977.9,0.15901222]
[1734392182268,0.36476433,3979.9,3978.6,3.0]
[1734392182452,0.41654286,3979.8,3978.6,3.0]
[1734392182653,0.5,3980.0,3978.0,0.55]
[1734392182903,0.22798292,3979.9,3978.6,3.0]
[1734392183083,0.5,3980.0,3978.0,0.55]
[1734392183282,0.5,3980.0,3978.1,0.02513096]
[1734392183481,1.02093662,3979.3,3977.0,0.07751543]
[1734392183678,3.63940734,3979.2,3977.0,0.07751543]
[1734392183998,3.72342408,3979.1,3977.0,0.07751543]
[1734392184205,1.46181075,3979.0,3977.0,0.07751543]
[1734392184498,1.07156991,3978.9,3977.0,0.07751543]
[1734392184669,0.02512037,3979.0,3977.0,0.07751543]
[1734392184670,3.38289301,3978.8,3977.0,0.07751543]
[1734392184852,3.2293239,3978.7,3977.0,0.07751543]
[1734392185058,1.46090254,3978.6,3977.0,0.07751543]
[1734392185257,1.46090254,3978.6,3975.8,0.005]
[1734392185258,0.25,3977.5,3975.0,1.09055846]
[1734392185486,2.35937031,3977.4,3974.7,0.12983647]
[1734392185670,0.59219145,3977.3,3974.3,0.78065289]
[1734392185883,0.04085076,3977.2,3974.3,0.78065289]
[1734392186083,0.02512037,3977.5,3974.3,0.91081179]
[1734392186297,1.4912736,3977.4,3974.3,0.12784322]
[1734392186489,0.25266451,3977.3,3974.4,0.02515566]
[1734392186658,0.25266451,3977.2,3974.3,0.12784322]
[1734392186857,0.22722605,3977.1,3974.3,0.12784322]
[1734392187102,0.25234016,3977.0,3974.3,0.12784322]
[1734392187302,0.25234016,3977.0,3974.0,0.02595406]
[1734392187303,0.22721979,3976.9,3974.0,0.0008]
[1734392187608,0.02512037,3976.8,3974.0,0.0008]
[1734392188173,0.02512037,3976.8,3974.0,0.14894359]
[1734392188375,0.02512037,3977.1,3974.0,0.14894359]
[1734392188717,0.02512037,3977.1,3974.1,0.55]
[1734392189399,0.25,3977.1,3974.1,0.15852851]
[1734392189558,1.09108985,3977.0,3974.1,0.15852851]
[1734392189759,0.22637239,3976.9,3974.1,0.15852851]
[1734392189988,0.02512037,3976.8,3974.1,0.15852851]
[1734392190803,0.02512037,3976.8,3974.2,0.55]
[1734392190989,0.02512037,3977.0,3974.1,0.15852851]
[1734392191172,0.25,3976.8,3974.0,0.0008]
[1734392191377,0.02512037,3976.7,3974.0,0.0008]
[1734392191561,0.25103462,3976.7,3974.0,0.0008]
[1734392191766,0.02512037,3976.7,3974.0,0.0008]
[1734392192509,0.02512037,3976.7,3974.6,0.55]
[1734392192716,0.98368836,3976.9,3974.8,0.55]
[1734392192929,0.98368836,3976.9,3974.9,3.0]
[1734392193204,8.95,3977.5,3975.0,3.55]
[1734392193205,0.02512037,3976.8,3975.0,3.55]
[1734392193407,0.02512037,3976.8,3975.0,0.55]
[1734392193612,0.02512037,3976.8,3975.1,0.55]
[1734392194106,0.02512037,3977.4,3975.1,0.55]
[1734392194527,0.02512037,3977.4,3975.3,3.0]
[1734392194724,0.89751204,3977.3,3975.3,3.0]
[1734392195042,0.89751204,3977.3,3974.1,0.12259068]
[1734392195043,0.02512037,3977.2,3974.1,0.12259068]
[1734392195196,0.02512037,3977.2,3975.3,3.0]
[1734392196041,0.02512037,3977.2,3974.1,0.12259068]
[1734392196515,0.02512037,3977.2,3974.1,0.14774661]
[1734392196695,0.19276584,3977.1,3974.1,0.12259068]
[1734392196882,0.02512037,3977.0,3975.0,3.0]
[1734392197086,0.02512037,3977.0,3975.3,3.0]
[1734392197281,0.02512037,3977.0,3974.2,0.55]
[1734392197498,0.02512037,3977.0,3975.3,3.0]
[1734392198561,0.02512037,3977.0,3974.2,0.55]
[1734392198724,0.02512037,3977.0,3975.3,3.0]
[1734392199251,0.02512037,3977.0,3974.8,0.55]
[1734392199448,0.02512037,3977.0,3975.0,3.0]
[1734392199650,0.02512037,3977.0,3975.0,0.36732466]
[1734392199857,0.02512037,3977.0,3975.0,3.0]
[1734392200053,0.02512037,3977.2,3975.0,3.0]
[1734392200250,0.02512037,3977.2,3974.8,0.55]
[1734392200973,0.25,3976.8,3972.8,1.06520921]
[1734392201124,0.02512037,3976.7,3973.8,0.12844464]
[1734392201330,0.02512037,3976.7,3973.8,0.88994464]
[1734392202122,0.02512037,3977.0,3973.8,0.88994464]
[1734392202322,0.89751204,3976.9,3973.8,0.88994464]
[1734392202528,0.02512037,3976.8,3974.8,3.0]
[1734392202972,0.02512037,3976.8,3973.9,0.55]
[1734392203150,0.02512037,3976.8,3974.5,3.0]
[1734392203657,0.02512037,3976.8,3973.9,0.55]
[1734392203857,0.02512037,3976.8,3974.5,3.0]
[1734392204058,0.02512037,3976.8,3974.5,0.3]
[1734392204362,0.02512037,3976.8,3974.5,3.0]
[1734392204664,0.22575192,3976.7,3974.5,3.0]
[1734392204967,8.95,3976.5,3974.5,3.0]
[1734392205265,0.02512037,3976.4,3973.8,0.12844464]
[1734392205429,0.02512037,3976.4,3974.5,3.0]
[1734392205625,0.89751204,3976.3,3974.6,0.3]
[1734392205879,0.02512037,3976.2,3974.6,0.3]
[1734392208665,0.02512037,3976.2,3974.0,0.5508]
[1734392209037,0.02512037,3976.9,3974.0,0.5508]
[1734392209240,0.22634055,3976.8,3974.1,0.02515733]
[1734392209450,9.84751204,3977.3,3974.0,0.5508]
[1734392209451,0.38758551,3977.2,3974.2,0.02515588]
[1734392209649,0.38758551,3977.2,3974.0,0.5508]
[1734392209650,0.02512037,3976.7,3974.0,0.57595588]
[1734392210061,0.02512037,3976.7,3974.2,0.55]
[1734392210261,0.02512037,3976.7,3974.1,0.7842]
[1734392210262,0.02512037,3976.7,3974.4,0.67722974]
[1734392210429,9.84751204,3977.3,3974.4,0.67722974]
[1734392210430,0.02512037,3977.2,3974.4,0.67722974]
[1734392210630,0.02512037,3977.2,3975.5,3.0]
[1734392210839,0.02512037,3977.2,3974.5,0.7842]
[1734392211039,0.02512037,3977.2,3975.5,3.0]
[1734392211274,0.02512037,3977.2,3974.5,0.7842]
[1734392211275,0.22702455,3977.1,3974.5,0.7842]
[1734392211433,0.02512037,3977.0,3975.5,3.0]
[1734392211634,0.02512037,3977.8,3975.5,3.0]
[1734392211904,0.22702174,3977.7,3974.6,0.02515146]
[1734392212093,9.31288069,3978.0,3974.6,0.02515146]
[1734392212094,0.25214211,3977.6,3974.6,0.02515146]
[1734392212274,0.25214211,3977.6,3975.3,3.0]
[1734392212275,9.17702174,3977.5,3975.3,3.0]
[1734392212583,9.17702174,3977.5,3974.4,0.67722974]
[1734392212584,0.6150228,3977.4,3974.4,0.67722974]
[1734392212797,0.58990243,3977.3,3974.4,0.67722974]
[1734392212941,0.6150228,3977.2,3974.4,0.67722974]
[1734392213301,0.58990243,3977.1,3974.4,0.67722974]
[1734392213522,0.02512037,3977.0,3974.4,0.67722974]
[1734392213658,0.59203207,3976.9,3975.0,3.0]
[1734392213863,0.61715244,3976.8,3974.4,0.67722974]
[1734392214178,0.59203207,3976.7,3975.0,3.0]
[1734392214390,0.61715244,3976.6,3975.0,3.0]
[1734392214597,0.59203207,3976.5,3975.0,0.3]
[1734392214776,0.61715244,3976.4,3975.0,3.0]
[1734392214978,0.59203207,3976.3,3975.0,3.0]
[1734392215181,0.61715244,3976.2,3975.0,3.0]
[1734392215488,0.59203207,3976.1,3975.0,3.0]
[1734392215692,0.22770464,3976.0,3975.0,3.0]
[1734392215913,0.02512037,3977.3,3975.0,3.0]
[1734392215914,0.22770464,3975.9,3975.2,0.55]
[1734392216069,9.21933042,3978.0,3975.2,0.55]
[1734392216070,0.61852841,3977.1,3975.2,0.55]
[1734392216275,0.59341352,3977.0,3974.9,0.55]
[1734392216469,0.59341352,3976.9,3975.5,3.0]
[1734392216719,0.02512037,3977.9,3975.5,3.0]
[1734392216720,0.59341352,3976.8,3975.5,3.0]
[1734392217020,0.59341352,3976.7,3974.9,0.55]
[1734392217219,0.59341352,3976.6,3975.5,3.0]
[1734392217430,8.95,3978.0,3975.5,3.0]
[1734392217431,0.61853389,3976.5,3975.5,3.0]
[1734392217574,0.59341352,3976.4,3975.5,3.0]
[1734392217775,0.59341352,3976.3,3975.5,3.0]
[1734392218023,0.22825858,3976.2,3974.9,0.55]
[1734392218174,0.59341352,3976.1,3973.8,0.12844464]
[1734392218377,0.61853389,3976.0,3973.9,0.55]
[1734392218576,0.59341352,3975.9,3973.9,0.55]
[1734392218816,0.25,3977.3,3973.8,0.12844464]
[1734392218817,0.61853389,3975.8,3973.8,0.12844464]
[1734392219020,0.59341352,3975.7,3973.8,0.12844464]
[1734392219271,0.59341352,3975.6,3973.8,0.12844464]
[1734392219521,0.61853389,3975.5,3973.8,0.12844464]
[1734392219685,3.0,3976.9,3973.8,0.12844464]
[1734392220023,10.76597849,3976.8,3974.0,3.0008]
[1734392220193,0.59334608,3976.7,3974.0,3.0008]
[1734392220376,0.61846645,3976.6,3974.0,3.0008]
[1734392220576,0.59334608,3976.5,3974.0,3.0008]
[1734392220924,10.14751204,3976.8,3974.0,3.0008]
[1734392220925,0.61846645,3976.4,3974.5,3.0]
[1734392221115,0.61846645,3976.4,3974.6,0.3]
[1734392221116,0.59334608,3976.3,3974.6,0.3]
[1734392221432,10.14751204,3976.8,3974.6,0.3]
[1734392221433,0.61846645,3976.2,3974.6,0.3]
[1734392221610,0.59334608,3976.1,3974.6,0.3]
[1734392221814,0.02512037,3976.2,3974.6,0.3]
[1734392221815,0.59334608,3976.0,3974.6,0.3]
[1734392222044,0.22821003,3975.9,3974.6,0.3]
[1734392222251,0.2533304,3975.8,3974.7,0.33]
[1734392222400,0.22821003,3975.7,3974.2,3.0]
[1734392222599,0.22821003,3975.6,3974.2,3.0]
[1734392222793,0.39025642,3975.8,3974.2,3.0]
[1734392222794,0.22821003,3975.5,3974.2,3.0]
[1734392223052,0.22821003,3975.4,3974.0,0.0008]
[1734392223231,12.34025642,3977.0,3974.2,3.0]
[1734392223558,2.22950764,3976.9,3974.3,0.32523796]
[1734392223740,0.61850871,3976.8,3974.0,0.0008]
[1734392223899,0.59338834,3976.7,3974.3,0.55]
[1734392224102,0.61850871,3976.6,3974.3,0.55]
[1734392224297,0.59338834,3976.5,3974.3,0.55]
[1734392224504,0.61850871,3976.4,3974.3,0.55]
[1734392224701,0.59338834,3976.3,3974.3,0.55]
[1734392225022,0.02512037,3976.8,3974.3,0.55]
[1734392225023,0.02512037,3976.8,3974.5,0.55]
[1734392225205,0.59352992,3976.7,3974.5,0.55]
[1734392225408,0.02512037,3977.2,3974.5,0.55]
[1734392225634,1.43445197,3977.1,3974.5,0.55]
[1734392225833,3.72874858,3977.6,3974.5,0.55]
[1734392225834,0.61867842,3977.0,3974.5,0.55]
[1734392226035,0.59355805,3976.9,3974.7,0.55]
[1734392226237,0.61867842,3976.8,3974.7,0.55]
[1734392226553,1.02093662,3977.4,3974.7,0.55]
[1734392226554,0.59355805,3976.7,3974.8,0.7899]
[1734392226756,0.59355805,3976.6,3975.3,3.0]
[1734392226956,2.0471459,3977.9,3975.8,0.55]
[1734392226957,0.36526649,3977.4,3975.8,0.55]
[1734392227141,0.59360947,3977.3,3975.9,0.355]
[1734392227451,1.02093662,3978.0,3975.8,0.55]
[1734392227452,0.59360947,3977.2,3975.8,0.55]
[1734392227604,0.22834298,3977.1,3975.8,0.55]
[1734392227803,0.22834298,3977.0,3975.8,0.55]
[1734392228022,0.22834298,3976.9,3975.5,0.55]
[1734392228315,0.36526649,3977.5,3975.8,0.55]
[1734392228519,0.5934757,3977.4,3975.9,0.355]
[1734392228708,0.22820921,3977.3,3975.9,0.355]
[1734392228905,0.22820921,3977.2,3975.9,0.355]
[1734392229109,0.25332958,3977.1,3975.2,0.55]
[1734392229405,1.02093662,3976.9,3975.2,0.55]
[1734392229754,0.22820921,3976.8,3975.2,0.55]
[1734392229913,0.22820921,3976.7,3975.2,0.55]
[1734392230109,0.22820921,3976.6,3975.2,0.55]
[1734392230354,1.02093662,3977.0,3975.4,0.55]
[1734392230665,0.22814051,3976.9,3975.6,0.55]
[1734392230808,2.18827825,3977.5,3975.6,0.55]
[1734392230809,1.16206897,3977.5,3975.6,0.55]
[1734392231148,3.36242972,3977.4,3975.6,3.55]
[1734392231353,0.84532329,3977.3,3975.6,0.57514594]
[1734392231549,1.07344789,3977.3,3975.8,0.55]
[1734392231750,0.2281246,3977.2,3975.8,0.55]
[1734392231958,1.5270685,3977.5,3975.8,0.55]
[1734392232162,3.04805676,3978.5,3975.7,0.13650459]
[1734392232163,0.22813405,3977.4,3976.0,0.55]
[1734392232388,1.02093662,3977.9,3976.0,0.0251431]
[1734392232528,2.0471459,3978.2,3976.0,0.55]
[1734392232529,0.2280518,3977.8,3976.0,0.55]
[1734392232725,1.41093988,3978.1,3976.4,3.0]
[1734392232930,1.41093988,3978.1,3976.0,0.55]
[1734392232931,1.07323581,3978.0,3976.0,0.55]
[1734392233131,0.476478,3977.9,3976.2,0.55]
[1734392233332,0.24841757,3977.9,3976.5,0.55]
[1734392233631,2.0471459,3978.6,3976.1,0.13650431]
[1734392233632,1.02093662,3978.6,3976.7,0.55]
[1734392233837,2.0471459,3979.0,3976.7,0.55]
[1734392233838,0.2280001,3978.5,3976.7,0.55]
[1734392234062,2.65296322,3978.7,3976.7,0.55]
[1734392234063,0.2280001,3978.4,3976.8,0.02514087]
[1734392234381,1.53535942,3978.9,3976.8,0.02514087]
[1734392234382,1.02093662,3978.9,3977.0,0.55]
[1734392234670,1.02093662,3978.9,3976.9,0.8028]
[1734392234671,0.22784648,3978.8,3977.2,0.55]
[1734392234870,0.02512037,3979.1,3977.2,0.68528]
[1734392235071,0.02512037,3979.2,3977.2,0.68528]
[1734392235296,1.38553132,3979.6,3977.2,0.68528]
[1734392235467,1.09706101,3979.5,3977.2,0.68528]
[1734392235776,0.22764969,3979.4,3977.3,0.02513522]
[1734392236025,0.02512037,3979.7,3977.5,0.55]
[1734392236145,0.22765992,3979.6,3977.9,3.0]
[1734392236350,0.21615041,3979.7,3977.9,3.0]
[1734392236562,0.21615041,3979.7,3977.7,0.55]
[1734392236763,0.02512037,3979.7,3977.7,0.55]
[1734392236943,0.02512037,3979.7,3978.0,3.0]
[1734392237564,0.02512037,3979.9,3978.0,3.0]
[1734392238072,0.22730926,3979.8,3978.0,3.0]
[1734392238273,0.02512037,3979.7,3978.0,3.0]
[1734392238429,0.02512037,3979.7,3977.7,0.55]
[1734392238638,0.02512037,3979.7,3978.1,3.0]
[1734392238835,0.02512037,3979.7,3977.7,0.55]
[1734392239064,0.5,3980.0,3978.4,3.0]
[1734392239272,0.5,3980.0,3978.4,0.55]
[1734392239541,0.5,3980.0,3978.5,3.0]
[1734392239976,0.5,3980.0,3978.6,0.55]
[1734392240137,0.5,3980.0,3978.9,3.0]
[1734392240341,0.5,3980.0,3978.4,0.55]
[1734392240342,0.5,3980.0,3979.1,3.0]
[1734392240567,0.5,3980.0,3978.5,0.02512764]
[1734392240772,0.5,3980.0,3978.4,0.55]
[1734392240773,0.5,3980.0,3979.4,3.0]
[1734392240974,0.5,3980.0,3978.4,0.55]
[1734392241180,0.5,3980.0,3979.4,3.0]
[1734392241749,0.5,3980.0,3978.4,0.67995744]
[1734392241943,0.5,3980.0,3979.0,3.0]
[1734392243100,0.5,3980.0,3978.8,0.12740866]
[1734392243324,0.5,3980.0,3979.0,3.0]
[1734392243493,0.5,3980.0,3979.0,0.31274087]
[1734392243695,0.5,3980.0,3978.8,0.12740866]
[1734392243895,0.5,3980.0,3979.0,3.0]
[1734392244408,0.5,3980.0,3978.8,0.12740866]
[1734392244593,0.5,3980.0,3979.0,3.0]
[1734392244792,0.5,3980.0,3978.8,0.12740866]
[1734392244793,0.5,3980.0,3978.8,3.0]
[1734392245315,0.5,3980.0,3977.8,0.8028]
[1734392245519,0.5,3980.0,3978.8,3.0]
[1734392246367,0.5,3980.0,3978.7,3.0]
[1734392247271,0.5,3980.0,3978.7,0.3127694]
[1734392247510,0.5,3980.0,3978.7,3.0]
[1734392248469,0.5,3980.0,3978.6,0.12769399]
[1734392248671,0.5,3980.0,3978.7,3.0]
[1734392248913,0.5,3980.0,3978.6,0.12769399]
[1734392249417,0.5,3980.0,3978.7,3.0]
[1734392249570,0.5,3980.0,3978.8,0.3127694]
[1734392249770,0.5,3980.0,3979.1,3.0]
[1734392249985,0.48743761,3980.0,3979.1,3.0]
[1734392250183,0.48743761,3980.0,3978.7,0.8028]
[1734392250380,0.48743761,3980.0,3978.7,3.0]
[1734392250613,0.48743761,3980.0,3978.8,0.3]
[1734392250997,0.48743761,3980.0,3978.2,0.12692754]
[1734392251221,0.48743761,3980.0,3978.7,3.0]
[1734392251944,0.48743761,3980.0,3978.4,0.13004553]
[1734392252093,0.48743761,3980.0,3978.7,3.0]
[1734392252293,0.48743761,3980.0,3978.4,0.13004553]
[1734392252294,0.48743761,3980.0,3978.1,0.55]
[1734392252530,0.48743761,3980.0,3978.7,3.0]
[1734392253036,0.48743761,3980.0,3979.3,3.0]
[1734392253253,0.36267948,3981.9,3979.9,3.0]
[1734392253532,0.36267948,3981.9,3980.4,3.0]
[1734392253533,0.02512037,3981.9,3980.4,3.0]
[1734392253889,0.02512037,3982.4,3979.7,0.55]
[1734392254089,0.02512037,3982.4,3980.4,3.0]
[1734392254090,0.2268178,3982.3,3980.4,3.0]
[1734392254345,0.25193817,3982.2,3980.4,3.0]
[1734392254645,0.2268178,3982.1,3980.4,3.0]
[1734392254932,0.02512037,3982.0,3980.4,3.0]
[1734392255439,0.02512037,3982.0,3979.9,0.55]
[1734392255598,0.02512037,3982.0,3980.4,3.0]
[1734392255945,0.02512037,3982.4,3980.5,0.3]
[1734392256235,0.22690684,3982.3,3980.6,0.8028]
[1734392256407,0.36290849,3982.9,3980.6,0.8028]
[1734392256408,0.25202721,3982.2,3980.6,0.8028]
[1734392256733,0.25202721,3982.2,3980.6,1.18308]
[1734392256734,0.22690684,3982.1,3980.6,1.18308]
[1734392256891,0.02512037,3982.0,3980.6,0.38028]
[1734392257534,0.02512037,3982.0,3980.4,3.0]
[1734392257741,8.97512037,3983.1,3980.4,0.32081441]
[1734392258049,0.5,3982.7,3980.7,3.0]
[1734392258338,0.25207042,3984.0,3980.9,3.0]
[1734392258339,0.25215361,3982.6,3980.9,3.0]
[1734392258636,0.02512037,3982.6,3980.9,3.0]
[1734392259219,0.02512037,3983.1,3980.9,3.0]
[1734392259403,0.22704883,3983.0,3980.5,0.55]
[1734392259598,1.003485,3983.2,3980.9,3.0]
[1734392259599,0.2521692,3982.9,3980.9,3.0]
[1734392259817,0.22704883,3982.8,3980.9,0.3]
[1734392260031,0.02512037,3982.7,3980.5,0.55]
[1734392260230,0.22705686,3982.6,3980.5,0.55]
[1734392260392,0.22705686,3982.6,3980.6,0.02511553]
[1734392260592,0.22705686,3982.5,3980.5,0.55]
[1734392260806,0.02512037,3983.1,3980.5,0.55]
[1734392260807,0.22705686,3982.4,3980.5,0.55]
[1734392261137,0.02512037,3983.1,3980.9,3.0]
[1734392261335,0.22720759,3983.0,3981.0,0.3]
[1734392261537,0.25232796,3982.9,3981.3,3.0]
[1734392261738,0.22720759,3982.8,3981.4,0.02511324]
[1734392261939,0.02512037,3983.2,3981.4,3.0]
[1734392262140,0.22723748,3983.1,3981.1,0.8028]
[1734392262446,0.55,3983.6,3981.5,0.55]
[1734392262447,0.25235785,3983.0,3981.5,0.55]
[1734392262627,0.25235785,3983.0,3981.6,0.355]
[1734392262628,0.22723748,3982.9,3981.6,0.355]
[1734392262939,0.22723748,3982.9,3981.5,0.55]
[1734392263146,0.22723748,3982.8,3981.5,0.55]
[1734392263299,0.22738853,3982.8,3981.6,3.0]
[1734392263501,0.55,3983.9,3981.6,3.0]
[1734392263502,0.36382165,3983.5,3981.6,3.0]
[1734392263712,0.02512037,3983.4,3981.8,3.0]
[1734392263936,0.22730349,3983.3,3981.9,0.3]
[1734392264098,0.22730349,3983.2,3981.8,3.0]
[1734392264301,0.02512037,3983.7,3981.8,3.0]
[1734392264525,0.2272651,3983.6,3981.8,3.0]
[1734392264732,0.363685,3983.9,3981.8,3.0]
[1734392264733,0.25238547,3983.5,3981.8,3.0]
[1734392264919,0.2272651,3983.4,3981.2,0.55]
[1734392265216,0.363685,3983.9,3981.3,0.14783211]
[1734392265217,0.25238547,3983.3,3981.3,0.14783211]
[1734392265415,0.25238547,3983.3,3981.4,0.55]
[1734392265416,0.2272651,3983.2,3981.4,0.55]
[1734392265623,0.2272651,3983.1,3981.9,3.0]
[1734392265826,0.36368559,3984.5,3981.4,0.57510953]
[1734392266026,0.363686,3984.1,3982.2,3.0]
[1734392266323,1.02093662,3985.3,3982.2,3.0]
[1734392266324,0.25235801,3984.0,3982.3,0.3]
[1734392266510,0.2271709,3983.9,3982.3,0.3]
[1734392266705,0.25229127,3983.8,3981.9,0.7693]
[1734392266909,0.02512037,3984.3,3982.4,3.0]
[1734392267146,0.22718522,3984.2,3982.4,3.0]
[1734392267401,0.22718522,3984.1,3982.7,3.0]
[1734392267524,8.97512037,3985.4,3982.9,3.0]
[1734392267525,0.02512037,3984.7,3982.9,3.0]
[1734392267853,0.02512037,3984.7,3983.0,0.3]
[1734392267854,0.22708077,3984.6,3983.0,0.3]
[1734392268152,0.25220114,3984.5,3983.0,0.3]
[1734392268359,0.22708077,3984.4,3983.0,0.3]
[1734392268553,0.02512037,3985.1,3982.7,0.7693]
[1734392268713,0.22698691,3985.0,3982.7,0.7693]
[1734392268912,8.95,3986.0,3983.2,3.0]
[1734392268913,0.25210728,3984.9,3983.2,3.0]
[1734392269216,0.22698691,3984.8,3983.2,3.0]
[1734392269410,0.02512037,3984.7,3983.2,3.0]
[1734392269759,0.22698691,3984.6,3983.2,3.0]
[1734392269968,0.25210728,3984.5,3983.2,3.3]
[1734392270259,0.02512037,3984.5,3983.2,3.3]
[1734392270413,0.02512037,3985.4,3983.2,3.3]
[1734392270616,0.22673764,3985.3,3983.2,3.3]
[1734392270946,0.25185801,3985.2,3983.2,3.3]
[1734392271161,0.22673764,3985.1,3983.3,0.33]
[1734392271466,1.13277344,3985.5,3983.3,3.33]
[1734392271467,0.25185801,3985.0,3983.3,3.33]
[1734392271607,0.7693,3985.5,3983.3,3.0]
[1734392271608,0.25185801,3984.9,3983.3,3.0]
[1734392271813,0.22673764,3984.8,3983.3,3.0]
[1734392272063,0.25185801,3984.7,3983.0,3.0]
[1734392272369,0.22673764,3984.6,3983.0,3.0]
[1734392272566,0.36347344,3985.2,3983.1,0.3]
[1734392272567,0.25185801,3984.5,3983.1,0.3]
[1734392272735,0.02512037,3984.5,3983.0,3.0]
[1734392273069,0.22656899,3984.4,3982.0,0.7693]
[1734392273382,0.25169546,3984.3,3983.0,3.0]
[1734392273706,0.22657509,3984.2,3983.0,3.0]
[1734392273962,0.22657509,3984.2,3982.1,0.55]
[1734392273963,0.25165008,3984.1,3982.1,0.55]
[1734392274138,0.22652971,3984.0,3982.2,0.14458264]
[1734392274340,0.02512037,3983.9,3982.2,0.14458264]
[1734392274669,0.38764051,3985.1,3982.2,0.14458264]
[1734392274965,0.58905338,3985.0,3982.2,0.14458264]
[1734392275165,0.25165361,3984.9,3982.7,3.0]
[1734392275464,0.25165361,3984.9,3982.8,0.3]
[1734392275465,0.22653324,3984.8,3982.8,0.3]
[1734392275777,0.25165361,3984.7,3982.8,0.3]
[1734392276061,0.22653324,3984.6,3982.8,0.3]
[1734392276270,0.25165361,3984.5,3982.8,0.3]
[1734392276479,0.22653324,3984.4,3982.8,0.3]
[1734392276636,0.22653324,3984.4,3982.7,3.12808396]
[1734392276637,0.02512037,3984.3,3982.9,0.3428084]
[1734392276956,0.22653324,3984.2,3982.9,0.3428084]
[1734392277157,0.22653324,3984.2,3983.3,3.0]
[1734392277377,0.38764051,3985.1,3983.3,3.0]
[1734392277378,0.36252014,3985.0,3983.3,3.0]
[1734392277529,0.25189958,3984.9,3983.3,3.0]
[1734392277737,0.22677921,3984.8,3983.3,3.0]
[1734392277937,0.25189958,3984.7,3983.3,3.0]
[1734392278276,0.22677921,3984.6,3983.4,0.3]
[1734392278444,0.22677921,3984.5,3983.4,0.3]
[1734392278632,0.22677921,3984.5,3983.3,3.0]
[1734392279036,0.22689027,3984.4,3983.3,3.0]
[1734392279230,0.36302443,3985.2,3983.3,3.0]
[1734392279482,0.36302443,3985.2,3982.7,0.12808396]
[1734392279483,0.61516827,3985.1,3982.7,0.12808396]
[1734392279687,0.61516827,3985.1,3983.3,3.0]
[1734392279688,0.5900479,3985.0,3983.3,3.0]
[1734392279838,0.25214384,3984.9,3983.3,3.3]
[1734392280160,0.5900479,3984.8,3983.3,3.0]
[1734392280491,0.61516827,3984.7,3983.3,3.0]
[1734392280696,0.5900479,3984.6,3982.7,0.12808396]
[1734392280992,0.25214384,3984.5,3983.3,3.0]
[1734392281300,0.02512037,3984.5,3983.3,3.0]
[1734392281511,1.48851006,3984.4,3983.3,3.0]
[1734392281823,0.22731295,3984.3,3983.3,3.0]
[1734392282098,0.22731295,3984.3,3982.7,0.12808396]
[1734392282099,0.22731295,3984.2,3982.7,0.12808396]
[1734392282266,0.25243332,3984.1,3983.3,3.0]
[1734392282469,0.22731295,3984.0,3983.3,3.0]
[1734392282663,0.22731295,3983.9,3983.3,3.3]
[1734392282973,8.95,3985.0,3983.3,3.3]
[1734392283177,8.95,3984.8,3982.3,0.12588309]
[1734392283375,0.61638423,3984.7,3982.2,0.14458264]
[1734392283687,0.59126386,3984.6,3982.2,0.14458264]
[1734392283894,8.95,3984.4,3982.2,0.14458264]
[1734392284202,0.61638423,3984.3,3981.8,0.32081441]
[1734392284504,0.61638423,3984.3,3981.9,0.12667633]
[1734392284505,0.59126386,3984.2,3981.9,0.12667633]
[1734392284666,8.95,3984.0,3981.9,0.44749074]
[1734392284872,0.59126386,3983.9,3981.9,0.44749074]
[1734392285206,0.61638423,3983.8,3982.5,3.0]
[1734392285501,1.54790228,3983.7,3982.8,3.0]
[1734392285706,0.59126386,3983.6,3982.8,3.0]
[1734392285863,0.61638423,3983.5,3982.8,3.0]